[Event "Czech Youth U14 Boys 2024"]
[Site "Kouty nad Desnou"]
[Date "2024.03.10"]
[Round "2.10"]
[White "Stara, Zuzana"]
[Black "Srba, Daniel"]
[Result "1/2-1/2"]
[ECO "B22"]
[WhiteElo "1807"]
[BlackElo "1742"]
[Annotator "NA RC"]
[PlyCount "105"]
[EventDate "2024.03.10"]
[EventType "swiss"]
[EventCountry "CZE"]
[SourceTitle "playchess.com"]
[Source "ChessBase"]
[SourceQuality "1"]
[TimeControl "40/5400+30:1800+30"]

1. e4 {[%emt 0:00:00]} c5 {[%emt 0:00:04]} 2. c3 {[%emt 0:00:14]} g6 {[%emt 0:00:22]} 3. d4 {[%emt 0:00:27]} cxd4 {[%emt 0:00:16]} 4. cxd4 {[%emt 0:05:07]} Bg7 {[%emt 0:00:15]} 5. Nf3 {[%emt 0:00:10]} Nc6 {[%emt 0:00:54]} 6. Nc3 {[%emt 0:01:26]} d6 {[%emt 0:01:56]} 7. Bc4 {[%emt 0:01:32]} Nf6 {[%emt 0:06:26]} 8. O-O {[%emt 0:01:07]} O-O {[%emt 0:00:30]} 9. h3 {[%emt 0:01:20]} Bd7 {[%emt 0:02:29]} 10. Be3 {[%emt 0:02:00]} Rc8 {[%emt 0:02:14]} 11. Bb3 {[%emt 0:00:21]} Na5 {[%emt 0:19:31]} 12. Qd2 {[%emt 0:14:10]} Nxb3 {[%emt 0:04:40]} 13. axb3 {[%emt 0:00:01]} a6 {[%emt 0:00:23]} 14. Rad1 {[%emt 0:01:47]} Bc6 {[%emt 0:07:10]} 15. Qd3 {[%emt 0:13:14]} d5 {[%emt 0:02:05]} 16. e5 {[%emt 0:03:25]} Ne4 {[%emt 0:02:49]} 17. Nd2 {[%emt 0:00:45]} f5 {[%emt 0:04:23]} 18. Ndxe4 {[%emt 0:03:12]} dxe4 {[%emt 0:01:57]} 19. Qd2 {[%emt 0:05:33]} Bd5 {[%emt 0:01:50]} 20. b4 {[%emt 0:14:16]} Bc4 {[%emt 0:03:41]} 21. Rfe1 {[%emt 0:00:11]} Bd3 {[%emt 0:00:22]} 22. Rc1 {[%emt 0:01:15]} Qd7 {[%emt 0:05:34]} 23. b3 {[%emt 0:08:29]} b5 {[%emt 0:00:56]} 24. f4 {[%emt 0:10:54]} e6 {[%emt 0:01:35]} 25. Ra1 {[%emt 0:01:17]} Rc6 {[%emt 0:01:51]} 26. Rec1 {[%emt 0:00:46]} Rfc8 {[%emt 0:00:19]} 27. Qe1 {[%emt 0:05:50]} Bf8 {[%emt 0:03:42]} 28. Na2 {[%emt 0:04:56]} Rc2 {[%emt 0:07:44]} 29. Bf2 {[%emt 0:00:39]} Bh6 {[%emt 0:09:52]} 30. g3 {[%emt 0:00:26]} g5 {[%emt 0:00:13]} 31. Rxc2 {[%emt 0:00:24]} Bxc2 {[%emt 0:00:33]} 32. Be3 {[%emt 0:00:29]} gxf4 {[%emt 0:00:21]} 33. gxf4 {[%emt 0:00:18]} Qg7+ {[%emt 0:01:01]} 34. Kh2 {[%emt 0:00:17]} Bxb3 {[%emt 0:00:35]} 35. Nc3 {[%emt 0:00:36]} Rc6 {[%emt 0:02:57]} 36. Qd2 {[%emt 0:00:20]} Qc7 {[%emt 0:01:18]} 37. Rg1+ {[%emt 0:00:29]} Kf7 {[%emt 0:00:17]} 38. Rc1 {[%emt 0:00:54]} Bf8 {[%emt 0:00:19]} 39. Qb2 {[%emt 0:00:39]} Bxb4 {[%emt 0:02:12]} 40. Qxb3 {[%emt 0:00:12]} Rxc3 {[%emt 0:01:29]} 41. Qd1 {[%emt 0:09:29]} Rxc1 {[%emt 0:00:38]} 42. Bxc1 {[%emt 0:00:59]} Ke7 {[%emt 0:01:56]} 43. Be3 {[%emt 0:07:20]} Qc3 {[%emt 0:01:16]} 44. Qg1 {[%emt 0:00:44]} Kd7 {[%emt 0:02:14]} 45. d5 {[%emt 0:06:12]} Qc2+ {[%emt 0:06:51]} 46. Kh1 {[%emt 0:00:24]} exd5 {[%emt 0:01:20]} 47. Qg7+ {[%emt 0:00:24]} Be7 {[%emt 0:00:14]} 48. e6+ {[%emt 0:01:44]} Kd6 {[%emt 0:02:05]} 49. Qe5+ {[%emt 0:01:18]} Kc6 {[%emt 0:01:11]} 50. Qd4 {[%emt 0:05:27]} Qb1+ {[%emt 0:03:11]} 51. Kh2 {[%emt 0:00:43]} Qa2+ {[%emt 0:00:05]} 52. Kh1 {[%emt 0:00:31]} Qa5 {[%emt 0:00:29]} 53. Qa7 {[%emt 0:00:36]} 1/2-1/2

[Event "Czech Youth U14 Boys 2024"]
[Site "Kouty nad Desnou"]
[Date "2024.03.10"]
[Round "2.11"]
[White "Trcalek, Filip"]
[Black "Sotek, Simon"]
[Result "0-1"]
[ECO "B01"]
[WhiteElo "1615"]
[BlackElo "1793"]
[Annotator "NA RC"]
[PlyCount "66"]
[EventDate "2024.03.10"]
[EventType "swiss"]
[EventCountry "CZE"]
[SourceTitle "playchess.com"]
[Source "ChessBase"]
[SourceQuality "1"]
[TimeControl "40/5400+30:1800+30"]

1. e4 {[%emt 0:00:04]} d5 {[%emt 0:00:06]} 2. exd5 {[%emt 0:00:08]} Nf6 {[%emt 0:00:06]} 3. d4 {[%emt 0:00:24]} Nxd5 {[%emt 0:00:11]} 4. Nf3 {[%emt 0:00:49]} Bg4 {[%emt 0:00:10]} 5. Be2 {[%emt 0:01:01]} e6 {[%emt 0:00:15]} 6. O-O {[%emt 0:01:07]} c6 {[%emt 0:00:24]} 7. h3 {[%emt 0:02:00]} Bh5 {[%emt 0:00:37]} 8. c4 {[%emt 0:04:26]} Nb6 {[%emt 0:02:16]} 9. c5 {[%emt 0:12:26]} Nd5 {[%emt 0:00:31]} 10. Qb3 {[%emt 0:00:44]} b6 {[%emt 0:08:31]} 11. cxb6 {[%emt 0:14:02]} Qxb6 {[%emt 0:01:51]} 12. Nbd2 {[%emt 0:07:29]} Bxf3 {[%emt 0:02:19]} 13. Bxf3 {[%emt 0:00:41]} Nd7 {[%emt 0:05:46]} 14. Bxd5 {[%emt 0:02:38]} cxd5 {[%emt 0:00:27]} 15. Qxb6 {[%emt 0:02:25]} axb6 {[%emt 0:00:26]} 16. Nf3 {[%emt 0:01:19]} Bd6 {[%emt 0:00:30]} 17. Be3 {[%emt 0:03:48]} Ke7 {[%emt 0:02:29]} 18. Rfc1 {[%emt 0:03:44]} f6 {[%emt 0:00:59]} 19. a3 {[%emt 0:01:52]} b5 {[%emt 0:05:11]} 20. b4 {[%emt 0:08:05]} Nb6 {[%emt 0:01:10]} 21. Nd2 {[%emt 0:00:48]} Kd7 {[%emt 0:01:23]} 22. Kf1 {[%emt 0:02:32]} Ra4 {[%emt 0:00:37]} 23. Rc3 {[%emt 0:11:23]} Rha8 {[%emt 0:00:43]} 24. Nb3 {[%emt 0:01:46]} Nc4 {[%emt 0:00:53]} 25. Nc5+ {[%emt 0:03:59]} Bxc5 {[%emt 0:01:25]} 26. bxc5 {[%emt 0:00:37]} b4 {[%emt 0:00:15]} 27. Rb3 {[%emt 0:00:21]} Rxa3 {[%emt 0:08:42]} 28. Rab1 {[%emt 0:00:46]} Rxb3 {[%emt 0:00:29]} 29. Rxb3 {[%emt 0:00:13]} Ra4 {[%emt 0:01:18]} 30. Ke2 {[%emt 0:01:30]} Kc6 {[%emt 0:00:51]} 31. g3 {[%emt 0:04:15]} Kb5 {[%emt 0:00:38]} 32. h4 {[%emt 0:01:00]} Ra1 {[%emt 0:01:05]} 33. Kd3 {[%emt 0:04:33]} Ka4 {[%emt 0:00:12]} 0-1

[Event "Czech Youth U14 Boys 2024"]
[Site "Kouty nad Desnou"]
[Date "2024.03.10"]
[Round "2.12"]
[White "Macosek, Alex"]
[Black "Lorenc, Matej"]
[Result "1-0"]
[ECO "A80"]
[WhiteElo "1781"]
[BlackElo "1637"]
[Annotator "NA RC"]
[PlyCount "109"]
[EventDate "2024.03.10"]
[EventType "swiss"]
[EventCountry "CZE"]
[SourceTitle "playchess.com"]
[Source "ChessBase"]
[SourceQuality "1"]
[TimeControl "40/5400+30:1800+30"]

1. d4 {[%emt 0:00:54]} f5 {[%emt 0:00:52]} 2. Bf4 {[%emt 0:01:04]} Nf6 {[%emt 0:00:42]} 3. e3 {[%emt 0:01:22]} g6 {[%emt 0:01:32]} 4. Be2 {[%emt 0:03:46]} d6 {[%emt 0:02:22]} 5. Nf3 {[%emt 0:07:49]} Bg7 {[%emt 0:01:17]} 6. O-O {[%emt 0:01:17]} Nbd7 {[%emt 0:01:50]} 7. h3 {[%emt 0:00:59]} c5 {[%emt 0:01:39]} 8. c3 {[%emt 0:00:40]} Qb6 {[%emt 0:04:12]} 9. Nbd2 {[%emt 0:03:35]} Qc7 {[%emt 0:04:25]} 10. Qb3 {[%emt 0:06:48]} Nb6 {[%emt 0:07:26]} 11. Ng5 {[%emt 0:05:16]} c4 {[%emt 0:18:29]} 12. Nxc4 {[%emt 0:03:07]} Nbd5 {[%emt 0:00:31]} 13. Bh2 {[%emt 0:16:14]} h6 {[%emt 0:01:22]} 14. Nf3 {[%emt 0:00:22]} Be6 {[%emt 0:01:49]} 15. Ncd2 {[%emt 0:12:06]} Qb6 {[%emt 0:10:33]} 16. Qd1 {[%emt 0:08:20]} O-O {[%emt 0:09:38]} 17. c4 {[%emt 0:01:18]} Nb4 {[%emt 0:02:30]} 18. a3 {[%emt 0:02:45]} Na6 {[%emt 0:00:38]} 19. b4 {[%emt 0:00:19]} Qd8 {[%emt 0:03:27]} 20. Rb1 {[%emt 0:02:06]} Nc7 {[%emt 0:00:42]} 21. Ne1 {[%emt 0:02:12]} d5 {[%emt 0:01:03]} 22. c5 {[%emt 0:00:29]} Ne4 {[%emt 0:00:14]} 23. Nxe4 {[%emt 0:01:02]} dxe4 {[%emt 0:00:15]} 24. g4 {[%emt 0:02:56]} Nd5 {[%emt 0:00:46]} 25. Rc1 {[%emt 0:01:41]} Qd7 {[%emt 0:00:39]} 26. Ng2 {[%emt 0:00:44]} fxg4 {[%emt 0:00:38]} 27. Bxg4 {[%emt 0:01:12]} h5 {[%emt 0:00:27]} 28. Bxe6+ {[%emt 0:01:03]} Qxe6 {[%emt 0:00:18]} 29. h4 {[%emt 0:02:44]} Rf3 {[%emt 0:02:04]} 30. b5 {[%emt 0:01:28]} Raf8 {[%emt 0:03:19]} 31. c6 {[%emt 0:01:17]} bxc6 {[%emt 0:00:09]} 32. bxc6 {[%emt 0:00:27]} Qg4 {[%emt 0:00:27]} 33. Qb3 {[%emt 0:02:27]} e6 {[%emt 0:02:39]} 34. Bd6 {[%emt 0:02:14]} Rc8 {[%emt 0:05:38]} 35. Qb7 {[%emt 0:01:56]} e5 {[%emt 0:01:19]} 36. Qd7 {[%emt 0:00:13]} exd4 {[%emt 0:01:54]} 37. Be5 {[%emt 0:00:34]} Nf6 {[%emt 0:01:24]} 38. Qxd4 {[%emt 0:00:44]} Qh3 {[%emt 0:01:36]} 39. Bxf6 {[%emt 0:01:50]} Bxf6 {[%emt 0:01:13]} 40. Qxe4 {[%emt 0:00:14]} Qf5 {[%emt 0:01:02]} 41. Qxf5 {[%emt 0:30:44]} Rxf5 {[%emt 0:30:14]} 42. Rc4 {[%emt 0:01:57]} Kf7 {[%emt 0:00:41]} 43. Rd1 {[%emt 0:00:33]} Rc7 {[%emt 0:02:05]} 44. a4 {[%emt 0:00:00]} Be5 {[%emt 0:00:00]} 45. f4 {[%emt 0:00:00]} Bf6 {[%emt 0:00:00]} 46. Rb1 {[%emt 0:00:00]} Ke6 {[%emt 0:00:00]} 47. Rb7 {[%emt 0:00:00]} Bd8 {[%emt 0:00:00]} 48. Rd4 {[%emt 0:00:00]} Rd5 {[%emt 0:00:00]} 49. Re4+ {[%emt 0:00:00]} Kd6 {[%emt 0:00:00]} 50. Rxc7 {[%emt 0:00:00]} Bxc7 {[%emt 0:00:00]} 51. Kf2 {[%emt 0:00:00]} Rc5 {[%emt 0:00:00]} 52. Ne1 {[%emt 0:00:00]} Rxc6 {[%emt 0:00:00]} 53. Nd3 {[%emt 0:00:00]} Rc2+ {[%emt 0:00:00]} 54. Kf3 {[%emt 0:00:00]} Rh2 {[%emt 0:00:00]} 55. Nf2 {[%emt 0:00:00]} 1-0

[Event "Czech Youth U14 Boys 2024"]
[Site "Kouty nad Desnou"]
[Date "2024.03.11"]
[Round "3.1"]
[White "Martirosyan, David"]
[Black "Popov, Roman"]
[Result "1/2-1/2"]
[ECO "E20"]
[WhiteElo "1981"]
[BlackElo "2353"]
[Annotator "TA"]
[PlyCount "77"]
[EventDate "2024.03.10"]
[EventType "swiss"]
[EventCountry "CZE"]
[SourceTitle "playchess.com"]
[Source "ChessBase"]
[SourceQuality "1"]
[TimeControl "40/5400+30:1800+30"]

{[%evp 15,77,0,-1,-6,1,-18,-11,-13,-16,-11,0,0,0,0,4,0,0,0,33,9,14,38,27,0,17,32,27,0,68,59,68,64,52,58,56,38,34,52,105,60,59,25,46,33,31,34,31,18,25,19,23,22,19,8,8,9,0,0,18,3,5,8,1,39]} 1. d4 {[%emt 0:00:18]} Nf6 {[%emt 0:00:15]} 2. c4 {[%emt 0:01:04]} e6 {[%emt 0:00:16]} 3. Nc3 {[%emt 0:00:54]} Bb4 {[%emt 0:00:21]} 4. Bd2 {[%emt 0:01:24]} O-O {[%emt 0:00:46]} 5. e3 {[%emt 0:01:05]} b6 {[%emt 0:00:37]} 6. Nf3 {[%emt 0:00:27]} Bb7 {[%emt 0:00:41]} 7. Bd3 {[%emt 0:00:58]} d5 {[%emt 0:01:07]} 8. cxd5 {[%emt 0:03:09]} exd5 {[%emt 0:01:10]} 9. Ne5 {[%emt 0:03:19]} Bd6 {[%emt 0:04:51]} 10. O-O {[%emt 0:01:17]} c5 {[%emt 0:04:21]} 11. Rc1 {[%emt 0:02:14]} Nc6 {[%emt 0:01:26]} 12. Ng4 {[%emt 0:00:55]} Nxg4 {[%emt 0:02:50]} 13. Qxg4 {[%emt 0:00:19]} g6 {[%emt 0:08:08]} 14. Nxd5 {[%emt 0:07:56]} Nxd4 {[%emt 0:02:15]} 15. exd4 {[%emt 0:00:53]} Bxd5 {[%emt 0:00:38]} 16. dxc5 {[%emt 0:03:28]} Bxc5 {[%emt 0:01:36][%cal Od5g2]} 17. Rcd1 {[%emt 0:05:26]} (17. Bc3 {is more complex.} Bxg2 18. Rfd1 Bc6 19. Bxg6 Bxf2+ 20. Kf1) 17... Be6 {[%emt 0:07:42]} 18. Qf3 {[%emt 0:02:51]} Qe7 {[%emt 0:05:28]} 19. a3 {[%emt 0:06:09]} (19. Bc3 {feels hotter.} Qg5 20. Be4 Rab8 21. h3) 19... Rfd8 {[%emt 0:04:23]} 20. Bc3 {[%emt 0:02:22] aiming for b4.} Bd5 {[%emt 0:03:08]} 21. Qh3 {[%emt 0:04:14]} (21. Qf4 $5 Bb3 $8 22. Rde1 $11) 21... Qe6 {[%emt 0:02:17]} (21... Qg5 $11) 22. Qh4 $14 {[%emt 0:01:56] [#] Rfe1 would now be deadly.} Be7 {[%emt 0:05:10]} 23. Qd4 {[%emt 0:05:03]} f6 {[%emt 0:00:30]} 24. Qh4 {[%emt 0:00:54]} Qf7 {[%emt 0:07:01]} 25. Rfe1 {[%emt 0:02:33][%cal Oe1e7] Hoping for Rxe7!} Bb3 {[%emt 0:03:48]} 26. Rd2 {[%emt 0:01:31][%cal Bd1d2,Bd2e2,Be2e3][%mdl 32]} Rd6 {[%emt 0:02:30]} ({Better is} 26... Rac8 $14) 27. Rde2 {[%emt 0:04:31] White is more active.} Bf8 {[%emt 0:02:09]} 28. Be4 {[%emt 0:03:24]} Rad8 {[%emt 0:01:17]} 29. h3 {[%emt 0:03:27]} f5 {[%emt 0:07:23]} 30. Bf3 {[%emt 0:02:17][%cal Oe2e7] And now Re7! would win.} Rd1 {[%emt 0:01:14]} 31. Re3 {[%emt 0:01:26]} Rxe1+ {[%emt 0:01:23]} 32. Rxe1 {[%emt 0:00:21]} Rd7 {[%emt 0:00:41]} 33. Bc6 {[%emt 0:02:52]} Re7 {[%emt 0:01:22] The position is equal.} 34. Rxe7 {[%emt 0:03:38]} Qxe7 {[%emt 0:00:33]} 35. Qf4 {[%emt 0:02:10]} Qd6 {[%emt 0:01:09]} 36. Qf3 {[%emt 0:01:08]} h6 {[%emt 0:01:31]} 37. g3 {[%emt 0:01:17]} Qd1+ {[%emt 0:00:33]} 38. Qxd1 {[%emt 0:00:38]} Bxd1 {[%emt 0:00:14]} 39. Bd5+ {[%emt 0:00:31] Weighted Error Value: White=0.08 (flawless) /Black=0.09 (flawless) .  Mistake:       	---       	Black=2      Inaccurate:     	White=4     	Black=1      OK:         	White=15    	Black=13     Best:        	---       	Black=5} 1/2-1/2

[Event "Czech Youth U14 Boys 2024"]
[Site "Kouty nad Desnou"]
[Date "2024.03.11"]
[Round "3.2"]
[White "Soucek, Andrej"]
[Black "Roubal, Matyas"]
[Result "1-0"]
[ECO "A45"]
[WhiteElo "1825"]
[BlackElo "1849"]
[Annotator "NA RC"]
[PlyCount "75"]
[EventDate "2024.03.10"]
[EventType "swiss"]
[EventCountry "CZE"]
[SourceTitle "playchess.com"]
[Source "ChessBase"]
[SourceQuality "1"]
[TimeControl "40/5400+30:1800+30"]

1. d4 {[%emt 0:00:03]} Nf6 {[%emt 0:00:04]} 2. Bg5 {[%emt 0:00:06]} Ne4 {[%emt 0:02:13]} 3. Bf4 {[%emt 0:00:18]} d5 {[%emt 0:03:42]} 4. e3 {[%emt 0:00:10]} c5 {[%emt 0:03:53]} 5. Nd2 {[%emt 0:00:57]} Bf5 {[%emt 0:03:21]} 6. Nxe4 {[%emt 0:06:18] A45: Trompowsky Attack.} Bxe4 {[%emt 0:00:24]} 7. Bxb8 {[%emt 0:00:19]} Qa5+ {[%emt 0:01:02]} 8. Qd2 {[%emt 0:01:21]} Qxd2+ {[%emt 0:00:06]} 9. Kxd2 {[%emt 0:00:04]} Rxb8 {[%emt 0:00:04]} 10. dxc5 {[%emt 0:08:46]} Rc8 {[%emt 0:05:48]} 11. b4 {[%emt 0:00:30]} b6 {[%emt 0:00:30]} 12. f3 Bg6 {[#]} 13. c6 $1 {[%emt 0:01:13]} e5 {[%emt 0:06:59]} 14. c3 {[%emt 0:13:43]} (14. b5 $16) 14... Be7 {[%emt 0:10:31]} 15. b5 {[%emt 0:02:30]} ({Don't take} 15. Bb5 $6 Kd8 $14) 15... Ba3 {[%emt 0:11:01]} 16. Bd3 (16. h4 $16) 16... e4 {[%emt 0:02:30]} (16... a6 $11 {remains equal.}) 17. Bc2 {[%emt 0:04:36]} (17. fxe4 $16 dxe4 18. Bc4) 17... O-O {[%emt 0:00:29]} (17... a6 $142) 18. Ne2 {[%emt 0:02:04]} exf3 {[%emt 0:02:03]} 19. gxf3 {[%emt 0:00:13]} Bxc2 {[%emt 0:00:13]} 20. Kxc2 {[%emt 0:00:16]} Rfe8 {[%emt 0:00:21]} 21. Kd3 {[%emt 0:00:37]} Bc5 {[%emt 0:00:14]} 22. Nd4 {[%emt 0:00:23]} Bxd4 {[%emt 0:00:48]} 23. cxd4 {[%emt 0:00:28]} f5 {[%emt 0:01:21]} 24. a4 {[%emt 0:01:04]} Rc7 {[%emt 0:02:04]} 25. a5 {[%emt 0:00:46]} bxa5 {[%emt 0:00:12]} 26. Rxa5 {[%emt 0:00:07]} Kf7 {[%emt 0:02:25]} 27. Rha1 {[%emt 0:00:21]} Ree7 {[%emt 0:00:05]} 28. Re1 $18 {[%emt 0:02:11]} (28. Rxa7 Rxa7 29. Rxa7 Rxa7 30. b6) 28... Ke6 {[%emt 0:03:06]} 29. e4 {[%emt 0:02:49]} fxe4+ {[%emt 0:03:53]} 30. fxe4 {[%emt 0:00:06]} dxe4+ {[%emt 0:00:03]} 31. Rxe4+ {[%emt 0:00:11]} Kd6 {[%emt 0:00:02]} 32. Rxe7 {[%emt 0:05:02]} Rxe7 {[%emt 0:00:16]} 33. Kc4 {[%emt 0:01:08]} g5 {[%emt 0:00:23]} 34. Ra1 {[%emt 0:00:08]} g4 {[%emt 0:02:50]} 35. Rf1 {[%emt 0:00:14]} Re2 {[%emt 0:00:49]} 36. Rf6+ {[%emt 0:00:36]} Ke7 {[%emt 0:00:47]} 37. Rh6 {[%emt 0:00:14]} Rc2+ {[%emt 0:00:15]} 38. Kd5 {[%emt 0:00:51]} 1-0

[Event "Czech Youth U14 Boys 2024"]
[Site "Kouty nad Desnou"]
[Date "2024.03.11"]
[Round "3.3"]
[White "Mydlar, Matej"]
[Black "Topencik, Bruno"]
[Result "1/2-1/2"]
[ECO "C03"]
[WhiteElo "1819"]
[BlackElo "2006"]
[Annotator "RC"]
[PlyCount "152"]
[EventDate "2024.03.10"]
[EventType "swiss"]
[EventCountry "CZE"]
[SourceTitle "playchess.com"]
[Source "ChessBase"]
[SourceQuality "1"]
[TimeControl "40/5400+30:1800+30"]

1. e4 {[%emt 0:00:05]} e6 {[%emt 0:00:08]} 2. d4 {[%emt 0:00:04]} d5 {[%emt 0:00:03]} 3. Nd2 {[%emt 0:00:06]} Be7 {[%emt 0:00:04]} 4. e5 {[%emt 0:00:06]} c5 {[%emt 0:01:31]} 5. dxc5 {[%emt 0:07:59]} Nd7 {[%emt 0:07:23]} 6. Ngf3 {[%emt 0:03:24]} Qc7 {[%emt 0:05:35]} 7. Bb5 {[%emt 0:13:25]} Bxc5 {[%emt 0:08:03]} 8. O-O {[%emt 0:02:09]} a6 {[%emt 0:01:49]} 9. Bxd7+ {[%emt 0:00:20]} Bxd7 {[%emt 0:00:10]} 10. Nb3 {[%emt 0:01:47]} Ba7 {[%emt 0:02:23]} 11. Bd2 {[%emt 0:03:13]} Ba4 {[%emt 0:11:05]} 12. Bb4 {[%emt 0:05:03]} Bxb3 {[%emt 0:02:22]} 13. axb3 {[%emt 0:06:55]} Bc5 {[%emt 0:03:36]} 14. Bxc5 {[%emt 0:00:27]} Qxc5 {[%emt 0:00:03]} 15. c3 {[%emt 0:02:02]} Ne7 {[%emt 0:01:10]} 16. Nd4 {[%emt 0:00:44]} Nc6 {[%emt 0:04:11]} 17. Nxc6 {[%emt 0:01:03]} Qxc6 {[%emt 0:00:41]} 18. Qg4 {[%emt 0:03:02]} O-O {[%emt 0:01:53]} 19. Kh1 {[%emt 0:03:33]} Qb6 {[%emt 0:03:33]} 20. Qa4 {[%emt 0:02:42]} Rad8 {[%emt 0:06:44]} 21. Rad1 {[%emt 0:01:56]} f6 {[%emt 0:01:48]} 22. exf6 {[%emt 0:03:33]} Rxf6 {[%emt 0:00:50]} 23. f3 {[%emt 0:07:22]} Qd6 {[%emt 0:02:38]} 24. g3 {[%emt 0:02:14]} Rdf8 {[%emt 0:03:25]} 25. Kg2 {[%emt 0:02:42]} Qe5 {[%emt 0:01:29]} 26. Qd4 {[%emt 0:01:20]} Qh5 {[%emt 0:05:03]} 27. Qe3 {[%emt 0:08:22]} Rh6 {[%emt 0:02:36]} 28. h4 {[%emt 0:01:08]} Rg6 {[%emt 0:02:44]} 29. Rd4 {[%emt 0:02:39]} Rgf6 {[%emt 0:02:44]} 30. c4 {[%emt 0:01:04]} Qf7 {[%emt 0:02:23]} 31. Qd3 {[%emt 0:01:17]} dxc4 {[%emt 0:00:39]} 32. bxc4 {[%emt 0:00:12]} Qc7 {[%emt 0:01:17]} 33. b4 {[%emt 0:08:40]} Rg6 {[%emt 0:01:45]} 34. Rd6 {[%emt 0:00:28]} Qe7 {[%emt 0:01:07]} 35. Qd4 {[%emt 0:01:27]} Rgf6 {[%emt 0:01:52]} 36. c5 {[%emt 0:01:19]} Qc7 {[%emt 0:01:02]} 37. Rf2 {[%emt 0:00:42]} h6 {[%emt 0:00:56]} 38. Qe4 {[%emt 0:00:18]} a5 {[%emt 0:00:35]} 39. Rxe6 {[%emt 0:01:38]} axb4 {[%emt 0:00:01]} 40. Rxf6 {[%emt 0:00:35]} Rxf6 {[%emt 0:00:02]} 41. Qxb4 {[%emt 0:30:18]} Rg6 {[%emt 0:34:47]} 42. g4 {[%emt 0:00:00]} Rc6 {[%emt 0:00:00]} 43. Qc4+ {[%emt 0:00:00]} Qf7 {[%emt 0:00:00]} 44. Qd4 {[%emt 0:00:00]} Qf6 {[%emt 0:00:00]} 45. Qd5+ {[%emt 0:00:00]} Qf7 {[%emt 0:00:00]} 46. Qe5 {[%emt 0:00:00]} Qf8 {[%emt 0:00:00]} 47. Rc2 {[%emt 0:00:00]} Kh8 {[%emt 0:00:00]} 48. Kg3 {[%emt 0:00:00]} b6 {[%emt 0:00:00]} 49. cxb6 {[%emt 0:00:00]} Rxc2 {[%emt 0:00:00]} 50. b7 {[%emt 0:00:00]} Rc8 {[%emt 0:00:00]} 51. bxc8=Q {[%emt 0:00:00]} Qxc8 {[%emt 0:00:00]} 52. g5 {[%emt 0:00:00]} hxg5 {[%emt 0:00:00]} 53. hxg5 {[%emt 0:00:00]} Qc1 {[%emt 0:00:00]} 54. Kg4 {[%emt 0:02:11]} Qg1+ {[%emt 0:00:00]} 55. Kf5 {[%emt 0:01:21]} Qb1+ {[%emt 0:00:00]} 56. Qe4 {[%emt 0:00:14]} Qb5+ {[%emt 0:00:00]} 57. Kg4 {[%emt 0:00:32]} Qd7+ {[%emt 0:01:36]} 58. Kh4 {[%emt 0:00:14]} Qd1 {[%emt 0:00:49]} 59. g6 {[%emt 0:02:04]} Qh1+ {[%emt 0:00:42]} 60. Kg4 {[%emt 0:00:15]} Qg2+ {[%emt 0:02:32]} 61. Kf4 {[%emt 0:00:28]} Qh2+ {[%emt 0:00:51]} 62. Kf5 {[%emt 0:00:19]} Qh3+ {[%emt 0:01:06]} 63. Qg4 {[%emt 0:00:23]} Qh1 {[%emt 0:02:14]} 64. Ke5 {[%emt 0:00:56]} Qe1+ {[%emt 0:00:16]} 65. Kf4 {[%emt 0:00:19]} Qc1+ {[%emt 0:00:25]} 66. Kg3 {[%emt 0:01:03]} Qg1+ {[%emt 0:00:20]} 67. Kh4 {[%emt 0:00:08]} Qe1+ {[%emt 0:02:53]} 68. Kh5 {[%emt 0:00:55]} Qe5+ {[%emt 0:00:49]} 69. Qg5 {[%emt 0:00:24]} Qd5 {[%emt 0:00:48]} 70. Kg4 {[%emt 0:00:31]} Qd4+ {[%emt 0:00:55]} 71. f4 {[%emt 0:00:11]} Qd1+ {[%emt 0:00:41]} 72. Kh4 {[%emt 0:01:24]} Qh1+ {[%emt 0:00:09]} 73. Kg4 {[%emt 0:00:19]} Qd1+ {[%emt 0:00:13]} 74. Kg3 {[%emt 0:01:16]} Qg1+ {[%emt 0:00:08]} 75. Kh4 {[%emt 0:00:18]} Qh1+ {[%emt 0:00:16]} 76. Kg4 {[%emt 0:00:16]} Qd1+ {[%emt 0:00:55]} 1/2-1/2

[Event "Czech Youth U14 Boys 2024"]
[Site "Kouty nad Desnou"]
[Date "2024.03.11"]
[Round "3.4"]
[White "Svadlenka, Michal"]
[Black "Stary, Vojtech"]
[Result "1-0"]
[ECO "B35"]
[WhiteElo "1869"]
[BlackElo "1950"]
[Annotator "RC"]
[PlyCount "69"]
[EventDate "2024.03.10"]
[EventType "swiss"]
[EventCountry "CZE"]
[SourceTitle "playchess.com"]
[Source "ChessBase"]
[SourceQuality "1"]
[TimeControl "40/5400+30:1800+30"]

1. e4 {[%emt 0:00:05]} c5 {[%emt 0:00:05]} 2. Nf3 {[%emt 0:00:31]} Nc6 {[%emt 0:00:04]} 3. d4 {[%emt 0:00:09]} cxd4 {[%emt 0:00:06]} 4. Nxd4 {[%emt 0:00:07]} g6 {[%emt 0:00:05]} 5. Nc3 {[%emt 0:00:10]} Bg7 {[%emt 0:00:11]} 6. Be3 {[%emt 0:00:11]} Nf6 {[%emt 0:00:11]} 7. Bc4 {[%emt 0:00:18]} O-O {[%emt 0:00:24]} 8. Bb3 {[%emt 0:00:22]} d6 {[%emt 0:04:05]} 9. f3 {[%emt 0:00:12]} Bd7 {[%emt 0:01:40]} 10. Qd2 {[%emt 0:01:44]} a6 {[%emt 0:04:31]} 11. O-O-O {[%emt 0:01:40]} b5 {[%emt 0:01:39]} 12. g4 {[%emt 0:02:14]} Ne5 {[%emt 0:04:51]} 13. Kb1 {[%emt 0:07:42]} Rb8 {[%emt 0:05:08]} 14. h4 {[%emt 0:01:55]} h5 {[%emt 0:07:08]} 15. gxh5 {[%emt 0:02:08]} Nxh5 {[%emt 0:00:19]} 16. Nd5 {[%emt 0:23:34]} a5 {[%emt 0:08:10]} 17. Bg5 {[%emt 0:14:27]} Re8 {[%emt 0:08:22]} 18. Nf4 {[%emt 0:05:59]} Qb6 {[%emt 0:14:03]} 19. Nxh5 {[%emt 0:03:07]} Nc4 {[%emt 0:01:39]} 20. Bxc4 {[%emt 0:05:18]} bxc4 {[%emt 0:00:14]} 21. c3 {[%emt 0:00:10]} gxh5 {[%emt 0:01:25]} 22. Rhg1 {[%emt 0:07:58]} Kh7 {[%emt 0:04:07]} 23. Be3 {[%emt 0:02:32]} Qb7 {[%emt 0:05:17]} 24. Rxg7+ {[%emt 0:11:27]} Kxg7 {[%emt 0:00:20]} 25. Rg1+ {[%emt 0:00:34]} Kh7 {[%emt 0:01:10]} 26. Rg5 {[%emt 0:01:46]} Bh3 {[%emt 0:14:29]} 27. Rxh5+ {[%emt 0:01:38]} Kg6 {[%emt 0:01:34]} 28. Rg5+ {[%emt 0:00:46]} Kh7 {[%emt 0:00:36]} 29. Rh5+ {[%emt 0:01:04]} Kg6 {[%emt 0:00:05]} 30. Rh6+ {[%emt 0:00:35]} Kg7 {[%emt 0:00:11]} 31. Ne6+ {[%emt 0:02:28]} fxe6 {[%emt 0:00:32]} 32. Bd4+ {[%emt 0:00:05]} Kf8 {[%emt 0:04:04]} 33. Rh8+ {[%emt 0:01:27]} Kf7 {[%emt 0:00:05]} 34. Rh7+ {[%emt 0:00:04]} Kg8 {[%emt 0:01:07]} 35. Qg5+ {[%emt 0:00:11]} 1-0